fUSD/lending_fUSD_20250421
["ID","MTS","AMOUNT","RATE_DAILY","PERIOD"]
[358481506,1745200241036,-1783.31342405,0.00063014,120]
[358481507,1745200241045,-1783.31342405,0.00063014,120]
[358481508,1745200241055,-1783.31342405,0.00063014,120]
[358481509,1745200241064,-1783.31342405,0.00063014,120]
[358481510,1745200241074,-1783.31342405,0.00063014,120]
[358481511,1745200241083,-1738.73058845,0.00063014,120]
[358481512,1745200241092,-1738.73058845,0.00063014,120]
[358481513,1745200241102,-1738.73058845,0.00063014,120]
[358481514,1745200241112,-1738.73058845,0.00063014,120]
[358481515,1745200241121,-1738.73058845,0.00063014,120]
[358481516,1745200241130,-1738.73058845,0.00063014,120]
[358481517,1745200241140,-1738.73058845,0.00063014,120]
[358481518,1745200241149,-1738.73058845,0.00063014,120]
[358481519,1745200241159,-1738.73058845,0.00063014,120]
[358481520,1745200241168,-1738.73058845,0.00063014,120]
[358481521,1745200241178,-1738.73058845,0.00063014,120]
[358481522,1745200241188,-1738.73058845,0.00063014,120]
[358481523,1745200241197,-1738.73058845,0.00063014,120]
[358481524,1745200241206,-1738.73058845,0.00063014,120]
[358481525,1745200241216,-1738.73058845,0.00063014,120]
[358481526,1745200241226,-1738.73058845,0.00063014,120]
[358481527,1745200241235,-1738.73058845,0.00063014,120]
[358481528,1745200241244,-1738.73058845,0.00063014,120]
[358481529,1745200241254,-1738.73058845,0.00063014,120]
[358481530,1745200241263,-1738.73058845,0.00063014,120]
[358481531,1745200241273,-1738.73058845,0.00063014,120]
[358481532,1745200241282,-1738.73058845,0.00063014,120]
[358481533,1745200241291,-1738.73058845,0.00063014,120]
[358481534,1745200241300,-1738.73058845,0.00063014,120]
[358481535,1745200241310,-1738.73058845,0.00063014,120]
[358481536,1745200241319,-1738.73058845,0.00063014,120]
[358481537,1745200241328,-1738.73058845,0.00063014,120]
[358481538,1745200241337,-1738.73058845,0.00063014,120]
[358481539,1745200241346,-1738.73058845,0.00063014,120]
[358481540,1745200241355,-1738.73058845,0.00063014,120]
[358481541,1745200241364,-1738.73058845,0.00063014,120]
[358481542,1745200241373,-1738.73058846,0.00063014,120]
[358481543,1745200241382,-1738.73058846,0.00063014,120]
[358481544,1745200241422,-1738.73058846,0.00063014,120]
[358481545,1745200241431,-1738.73058846,0.00063014,120]
[358481546,1745200241440,-1738.73058846,0.00063014,120]
[358481547,1745200241452,-150.0,0.00063126,120]
[358481548,1745200241462,-150.45,0.00063367,120]
[358481549,1745200241471,-421.94,0.00063387,2]
[358481550,1745200241480,-166.66,0.00063524,2]
[358481551,1745200241491,-200.0,0.000639,120]
[358481552,1745200241501,-1799.99999901,0.000639,120]
[358481553,1745200241511,-2792.07231133,0.00063933,15]
[358481554,1745200241521,-157.0,0.00064,120]
[358481555,1745200241532,-300.0,0.00064,120]
[358481556,1745200241542,-150.0,0.0006413,120]
[358481557,1745200241551,-874.953,0.00064237,120]
[358481558,1745200241561,-150.0,0.00064284,120]
[358481559,1745200241574,-568.26272871,0.00064434,5]
[358481560,1745200241584,-3600.0,0.00064444,42]
[358481561,1745200241595,-150.0,0.00064793,120]
[358481562,1745200241605,-200.0,0.000649,120]
[358481563,1745200241615,-498.83,0.00065,20]
[358481564,1745200241626,-226.13088437,0.00065,16]
[358481565,1745200241637,-500.0,0.00065,120]
[358481566,1745200241649,-157.26,0.00065236,120]
[358481567,1745200241659,-150.0,0.000655,7]
[358481568,1745200241669,-2792.07231133,0.000655,15]
[358481569,1745200241679,-421.94,0.00065651,2]
[358481570,1745200241689,-88888.0,0.00065653,120]
[358481571,1745200241702,-195.05309839,0.00065653,102]
[358481572,1745200241713,-1136.52545742,0.00065733,5]
[358481573,1745200241724,-568.26272871,0.00065734,5]
[358481574,1745200241735,-3977.83910097,0.00065743,5]
[358481575,1745200241746,-1136.52545742,0.00065744,5]
[358481576,1745200241757,-517.81460755,0.00065753,120]
[358481577,1745200241768,-516.68996114,0.00065753,120]
[358481578,1745200241779,-518.89745351,0.00065753,120]
[358481579,1745200241789,-537.21312342,0.00065753,120]
[358481580,1745200241799,-500.0,0.00065753,120]
[358481581,1745200241810,-581.04283233,0.00065753,120]
[358481582,1745200241821,-500.0,0.00065753,120]
[358481583,1745200241831,-510.82303699,0.00065753,120]
[358481584,1745200241843,-540.21154912,0.00065753,120]
[358481585,1745200241853,-327.64582506,0.00065753,120]
[358481586,1745200241863,-500.0,0.00065753,120]
[358481587,1745200241872,-505.97174097,0.00065753,120]
[358481588,1745200241882,-500.0,0.00065753,120]
[358481589,1745200241892,-500.0,0.00065753,120]
[358481590,1745200241901,-571.92965288,0.00065753,120]
[358481591,1745200241911,-523.14310518,0.00065753,120]
[358481592,1745200241920,-526.49566515,0.00065753,120]
[358481593,1745200241929,-515.16869148,0.00065753,120]
[358481594,1745200241939,-519.72137447,0.00065753,120]
[358481595,1745200241948,-500.0,0.00065753,120]
[358481596,1745200241958,-520.97713745,0.00065753,120]
[358481597,1745200241967,-515.43995468,0.00065753,120]
[358481598,1745200241976,-544.04372641,0.00065753,120]
[358481599,1745200241986,-999.0,0.00065753,120]
[358481600,1745200241995,-511.2217232,0.00065753,120]
[358481601,1745200242004,-521.80369776,0.00065753,120]
[358481602,1745200242014,-510.1364892,0.00065753,120]
[358481603,1745200242023,-560.52552256,0.00065753,120]
[358481604,1745200242032,-500.0,0.00065753,120]
[358481605,1745200242042,-513.59957733,0.00065753,120]
[358481606,1745200242051,-525.43364993,0.00065753,120]
[358481607,1745200242061,-535.46998752,0.00065753,120]
[358481608,1745200242071,-500.0,0.00065753,120]
[358481609,1745200242080,-522.99453227,0.00065753,120]
[358481610,1745200242089,-558.50216803,0.00065753,120]
[358481611,1745200242098,-645.4658013,0.00065753,120]
[358481612,1745200242107,-522.02287952,0.00065753,120]
[358481613,1745200242117,-568.70753248,0.00065753,120]
[358481614,1745200242126,-500.0,0.00065753,120]
[358481615,1745200242135,-500.0,0.00065753,120]
[358481616,1745200242144,-516.79605235,0.00065753,120]
[358481617,1745200242154,-500.0,0.00065753,120]
[358481618,1745200242162,-500.0,0.00065753,120]
[358481619,1745200242171,-500.0,0.00065753,120]
[358481620,1745200242181,-500.0,0.00065753,120]
[358481621,1745200242190,-544.01064249,0.00065753,120]
[358481622,1745200242200,-500.0,0.00065753,120]
[358481623,1745200242209,-500.0,0.00065753,120]
[358481624,1745200242218,-518.21357438,0.00065753,120]
[358481625,1745200242227,-500.0,0.00065753,120]
[358481626,1745200242236,-500.0,0.00065753,120]
[358481627,1745200242245,-609.90773287,0.00065753,120]
[358481628,1745200242254,-500.0,0.00065753,120]
[358481629,1745200242264,-524.5337513,0.00065753,120]
[358481630,1745200242273,-529.57360616,0.00065753,120]
[358481631,1745200242282,-159.71886295,0.00065753,120]
[358481632,1745200242291,-500.0,0.00065753,120]
[358481633,1745200242300,-500.0,0.00065753,120]
[358481634,1745200242309,-509.66916007,0.00065753,120]
[358481635,1745200242318,-500.0,0.00065753,120]
[358481636,1745200242327,-551.29144262,0.00065753,120]
[358481637,1745200242336,-519.81076826,0.00065753,120]
[358481638,1745200242346,-843.54,0.00065753,120]
[358481639,1745200242355,-500.0,0.00065753,120]
[358481640,1745200242364,-500.0,0.00065753,120]
[358481641,1745200242373,-513.33493451,0.00065753,120]
[358481642,1745200242382,-500.0,0.00065753,120]
[358481643,1745200242391,-500.0,0.00065753,120]
[358481644,1745200242400,-160.03668902,0.00065753,120]
[358481645,1745200242410,-500.0,0.00065753,120]
[358481646,1745200242419,-500.0,0.00065753,120]
[358481647,1745200242428,-500.0,0.00065753,120]
[358481648,1745200242437,-500.0,0.00065753,120]
[358481649,1745200242448,-581.4775135,0.00065753,120]
[358481650,1745200242457,-500.0,0.00065753,120]
[358481651,1745200242467,-506.47209807,0.00065753,120]
[358481652,1745200242476,-500.0,0.00065753,120]
[358481653,1745200242485,-500.0,0.00065753,120]
[358481654,1745200242495,-514.98963076,0.00065753,120]
[358481655,1745200242504,-565.17794584,0.00065753,120]
[358481656,1745200242513,-379.93362607,0.00065753,120]
[358481657,1745200242522,-521.6473064,0.00065753,120]
[358481658,1745200242531,-540.86931619,0.00065753,120]
[358481659,1745200242540,-500.0,0.00065753,120]
[358481660,1745200242549,-500.0,0.00065753,120]
[358481661,1745200242559,-500.0,0.00065753,120]
[358481662,1745200242568,-500.0,0.00065753,120]
[358481663,1745200242577,-500.0,0.00065753,120]
[358481664,1745200242587,-538.77704615,0.00065753,120]
[358481665,1745200242596,-500.0,0.00065753,120]
[358481666,1745200242605,-586.06489724,0.00065753,120]
[358481668,1745200242615,-532.17637582,0.00065753,120]
[358481670,1745200242626,-500.0,0.00065753,120]
[358481671,1745200242635,-391.07162493,0.00065753,120]
[358481672,1745200242646,-500.0,0.00065753,120]
[358481673,1745200242658,-500.0,0.00065753,120]
[358481674,1745200242668,-500.0,0.00065753,120]
[358481675,1745200242677,-308.46466126,0.00065753,120]
[358481677,1745200242687,-500.0,0.00065753,120]
[358481678,1745200242696,-575.20173136,0.00065753,120]
[358481679,1745200242705,-500.0,0.00065753,120]
[358481680,1745200242715,-500.0,0.00065753,120]
[358481681,1745200242725,-500.0,0.00065753,120]
[358481682,1745200242735,-500.0,0.00065753,120]
[358481683,1745200242744,-500.0,0.00065753,120]
[358481684,1745200242753,-500.0,0.00065753,120]
[358481685,1745200242763,-500.0,0.00065753,120]
[358481686,1745200242772,-500.0,0.00065753,120]
[358481688,1745200242781,-500.0,0.00065753,120]
[358481690,1745200242790,-500.0,0.00065753,120]
[358481692,1745200242799,-500.0,0.00065753,120]
[358481693,1745200242808,-500.0,0.00065753,120]
[358481694,1745200242818,-500.0,0.00065753,120]
[358481695,1745200242827,-500.0,0.00065753,120]
[358481696,1745200242836,-500.0,0.00065753,120]
[358481697,1745200242846,-500.0,0.00065753,120]
[358481698,1745200242856,-500.0,0.00065753,120]
[358481699,1745200242865,-500.0,0.00065753,120]
[358481700,1745200242875,-500.0,0.00065753,120]
[358481701,1745200242885,-500.0,0.00065753,120]
[358481702,1745200242894,-500.0,0.00065753,120]
[358481703,1745200242903,-500.0,0.00065753,120]
[358481704,1745200242912,-600.0,0.00065753,120]
[358481705,1745200242921,-500.0,0.00065753,120]
[358481706,1745200242930,-500.0,0.00065753,120]
[358481707,1745200242940,-500.0,0.00065753,120]
[358481708,1745200242949,-500.0,0.00065753,120]
[358481709,1745200242958,-500.0,0.00065753,120]
[358481710,1745200242968,-500.0,0.00065753,120]
[358481711,1745200242978,-545.03769096,0.00065753,120]
[358481712,1745200242988,-500.0,0.00065753,120]
[358481713,1745200242997,-500.0,0.00065753,120]
[358481714,1745200243007,-500.0,0.00065753,120]
[358481715,1745200243017,-500.0,0.00065753,120]
[358481716,1745200243026,-500.0,0.00065753,120]
[358481717,1745200243036,-500.0,0.00065753,120]
[358481718,1745200243046,-585.24399957,0.00065753,120]
[358481719,1745200243055,-500.0,0.00065753,120]
[358481720,1745200243065,-500.0,0.00065753,120]
[358481721,1745200243074,-500.0,0.00065753,120]
[358481722,1745200243083,-500.0,0.00065753,30]
[358481723,1745200243093,-500.0,0.00065753,120]
[358481724,1745200243103,-500.0,0.00065753,120]
[358481725,1745200243113,-500.0,0.00065753,120]
[358481726,1745200243122,-500.0,0.00065753,120]
[358481727,1745200243132,-500.0,0.00065753,14]
[358481728,1745200243142,-500.0,0.00065753,120]
[358481729,1745200243151,-611.22010382,0.00065753,120]
[358481730,1745200243161,-500.0,0.00065753,120]
[358481731,1745200243170,-509.23025477,0.00065753,120]
[358481732,1745200243179,-500.0,0.00065753,120]
[358481733,1745200243189,-500.0,0.00065753,120]
[358481734,1745200243199,-500.0,0.00065753,120]
[358481735,1745200243209,-500.0,0.00065753,120]
[358481736,1745200243218,-500.0,0.00065753,120]
[358481737,1745200243228,-500.0,0.00065753,120]
[358481738,1745200243237,-500.0,0.00065753,120]
[358481739,1745200243247,-500.0,0.00065753,120]
[358481740,1745200243256,-500.0,0.00065753,120]
[358481741,1745200243266,-589.47405906,0.00065753,120]
[358481742,1745200243275,-500.0,0.00065753,120]
[358481743,1745200243284,-637.10910333,0.00065753,120]
[358481744,1745200243294,-500.0,0.00065753,120]
[358481745,1745200243303,-500.0,0.00065753,120]
[358481746,1745200243313,-500.0,0.00065753,120]
[358481747,1745200243322,-500.0,0.00065753,120]
[358481748,1745200243332,-646.53520329,0.00065753,120]
[358481749,1745200243341,-500.0,0.00065753,120]
[358481750,1745200243351,-500.0,0.00065753,120]
[358481751,1745200243361,-304.53576256,0.00065753,120]
[358481752,1745200243371,-500.0,0.00065753,120]
[358481753,1745200243380,-500.0,0.00065753,120]
[358481754,1745200243390,-2122.14,0.00065753,120]
[358481755,1745200243399,-511.91,0.00065753,120]
[358481756,1745200243409,-316.38124594,0.00065753,120]
[358481757,1745200243419,-500.0,0.00065753,120]
[358481758,1745200243428,-500.0,0.00065753,120]
[358481759,1745200243438,-500.0,0.00065753,120]
[358481760,1745200243447,-500.0,0.00065753,120]
[358481761,1745200243457,-500.0,0.00065753,120]
[358481762,1745200243466,-572.63780316,0.00065753,120]
[358481763,1745200243476,-500.0,0.00065753,120]
[358481764,1745200243486,-533.65285747,0.00065753,120]
[358481765,1745200243495,-621.34848144,0.00065753,120]
[358481766,1745200243505,-500.0,0.00065753,120]
[358481767,1745200243514,-500.0,0.00065753,120]
[358481768,1745200243523,-500.0,0.00065753,120]
[358481769,1745200243533,-544.47500581,0.00065753,120]
[358481770,1745200243542,-500.0,0.00065753,120]
[358481771,1745200243552,-500.0,0.00065753,120]
[358481772,1745200243561,-500.0,0.00065753,120]
[358481773,1745200243571,-500.0,0.00065753,120]
[358481774,1745200243580,-539.75018618,0.00065753,120]
[358481775,1745200243589,-512.28236882,0.00065753,120]
[358481776,1745200243599,-500.0,0.00065753,120]
[358481777,1745200243608,-554.13363298,0.00065753,120]
[358481778,1745200243618,-579.60762912,0.00065753,120]
[358481779,1745200243629,-500.0,0.00065753,120]
[358481780,1745200243639,-500.0,0.00065753,120]
[358481781,1745200243648,-574.76434348,0.00065753,120]
[358481782,1745200243657,-500.0,0.00065753,120]
[358481783,1745200243666,-500.0,0.00065753,120]
[358481784,1745200243675,-500.0,0.00065753,120]
[358481785,1745200243685,-500.0,0.00065753,120]
[358481786,1745200243694,-500.0,0.00065753,120]
[358481787,1745200243704,-500.0,0.00065753,120]
[358481788,1745200243713,-500.0,0.00065753,120]
[358481789,1745200243722,-521.91864939,0.00065753,120]
[358481790,1745200243732,-500.0,0.00065753,120]
[358481791,1745200243741,-500.0,0.00065753,120]
[358481792,1745200243750,-549.77332377,0.00065753,120]
[358481793,1745200243760,-500.0,0.00065753,120]
[358481794,1745200243769,-500.0,0.00065753,120]
[358481795,1745200243778,-500.0,0.00065753,120]
[358481796,1745200243788,-500.0,0.00065753,120]
[358481797,1745200243797,-504.87162432,0.00065753,120]
[358481798,1745200243806,-500.0,0.00065753,120]
[358481799,1745200243816,-500.0,0.00065753,120]
[358481800,1745200243826,-500.0,0.00065753,120]
[358481801,1745200243835,-569.71285635,0.00065753,120]
[358481802,1745200243844,-500.0,0.00065753,120]
[358481803,1745200243853,-500.0,0.00065753,120]
[358481804,1745200243862,-500.0,0.00065753,120]
[358481805,1745200243872,-500.0,0.00065753,120]
[358481806,1745200243881,-500.0,0.00065753,120]
[358481807,1745200243890,-500.0,0.00065753,120]
[358481808,1745200243900,-647.71881588,0.00065753,120]
[358481809,1745200243909,-518.28566135,0.00065753,120]
[358481810,1745200243918,-526.63763772,0.00065753,120]
[358481811,1745200243927,-547.73221251,0.00065753,120]
[358481812,1745200243937,-500.0,0.00065753,120]
[358481813,1745200243946,-500.0,0.00065753,120]
[358481814,1745200243956,-500.0,0.00065753,120]
[358481815,1745200243966,-500.0,0.00065753,120]
[358481816,1745200243975,-500.0,0.00065753,120]
[358481817,1745200243985,-523.38480097,0.00065753,120]
[358481818,1745200243994,-501.82213806,0.00065753,120]
[358481819,1745200244004,-500.0,0.00065753,120]
[358481820,1745200244013,-500.0,0.00065753,120]
[358481821,1745200244023,-527.85542286,0.00065753,120]
[358481822,1745200244033,-500.0,0.00065753,120]
[358481823,1745200244043,-534.48365655,0.00065753,120]
[358481824,1745200244053,-306.86783854,0.00065753,120]
[358481825,1745200244062,-508.06284586,0.00065753,120]
[358481826,1745200244073,-500.0,0.00065753,120]
[358481827,1745200244082,-572.53475047,0.00065753,120]
[358481828,1745200244092,-500.0,0.00065753,120]
[358481829,1745200244102,-500.0,0.00065753,120]
[358481830,1745200244111,-500.0,0.00065753,120]
[358481831,1745200244122,-588.58967896,0.00065753,120]
[358481832,1745200244131,-516.90812867,0.00065753,120]
[358481833,1745200244141,-500.0,0.00065753,120]
[358481834,1745200244152,-500.0,0.00065753,120]
[358481835,1745200244162,-500.0,0.00065753,120]
[358481836,1745200244172,-500.0,0.00065753,120]
[358481838,1745200244183,-500.0,0.00065753,120]
[358481839,1745200244193,-496.24960959,0.00065753,120]
[358481841,1745200244204,-500.0,0.00065753,120]
[358481842,1745200244214,-500.0,0.00065753,120]
[358481843,1745200244224,-500.0,0.00065753,120]
[358481844,1745200244235,-504.59205877,0.00065753,120]
[358481845,1745200244245,-500.0,0.00065753,120]
[358481846,1745200244255,-500.0,0.00065753,120]
[358481848,1745200244264,-500.0,0.00065753,120]
[358481850,1745200244275,-509.8668666,0.00065753,120]
[358481852,1745200244285,-500.0,0.00065753,120]
[358481853,1745200244294,-500.0,0.00065753,120]
[358481854,1745200244304,-500.0,0.00065753,120]
[358481855,1745200244314,-500.0,0.00065753,120]
[358481856,1745200244323,-500.0,0.00065753,120]
[358481857,1745200244440,-160.06262027,0.00065753,120]
[358481858,1745200244450,-500.0,0.00065753,120]
[358481859,1745200244460,-500.0,0.00065753,120]
[358481860,1745200244469,-516.76839149,0.00065753,120]
[358481861,1745200244478,-502.28604599,0.00065753,120]
[358481862,1745200244488,-563.43988955,0.00065753,120]
[358481863,1745200244497,-557.62623526,0.00065753,120]
[358481864,1745200244506,-500.0,0.00065753,120]
[358481865,1745200244516,-551.70670431,0.00065753,120]
[358481866,1745200244525,-542.07338614,0.00065753,120]
[358481867,1745200244534,-548.58197435,0.00065753,120]
[358481868,1745200244543,-500.0,0.00065753,10]
[358481869,1745200244552,-500.0,0.00065753,120]
[358481870,1745200244561,-516.78076297,0.00065753,120]
[358481871,1745200244570,-561.00190513,0.00065753,120]
[358481872,1745200244579,-500.0,0.00065753,120]
[358481873,1745200244588,-500.0,0.00065753,120]
[358481874,1745200244598,-500.0,0.00065753,120]
[358481875,1745200244607,-564.81678185,0.00065753,120]
[358481876,1745200244617,-500.0,0.00065753,120]
[358481877,1745200244629,-548.18485996,0.00065753,120]
[358481878,1745200244639,-500.0,0.00065753,120]
[358481879,1745200244647,-543.95250681,0.00065753,120]
[358481880,1745200244657,-500.0,0.00065753,120]
[358481881,1745200244667,-508.0958611,0.00065753,120]
[358481882,1745200244676,-551.23709452,0.00065753,120]
[358481883,1745200244687,-500.0,0.00065753,120]
[358481884,1745200244695,-500.0,0.00065753,120]
[358481885,1745200244705,-167.45655375,0.00065753,120]
[358481886,1745200244714,-500.0,0.00065753,120]
[358481887,1745200244723,-522.26197918,0.00065753,120]
[358481888,1745200244733,-500.0,0.00065753,120]
[358481890,1745200244743,-500.0,0.00065753,120]
[358481891,1745200244752,-523.90637538,0.00065753,120]
[358481892,1745200244761,-455.15820229,0.00065753,120]
[358481893,1745200244770,-500.0,0.00065753,120]
[358481894,1745200244779,-500.0,0.00065753,120]
[358481895,1745200244788,-500.0,0.00065753,120]
[358481896,1745200244797,-282.83565511,0.00065753,120]
[358481897,1745200244806,-500.0,0.00065753,120]
[358481898,1745200244815,-500.0,0.00065753,120]
[358481899,1745200244824,-524.32655162,0.00065753,120]
[358481900,1745200244833,-582.21432565,0.00065753,120]
[358481901,1745200244842,-505.55097611,0.00065753,120]
[358481902,1745200244851,-500.0,0.00065753,120]
[358481903,1745200244860,-500.0,0.00065753,120]
[358481904,1745200244869,-500.0,0.00065753,120]
[358481905,1745200244878,-500.0,0.00065753,120]
[358481906,1745200244887,-500.0,0.00065753,120]
[358481907,1745200244896,-500.0,0.00065753,30]
[358481908,1745200244905,-500.0,0.00065753,120]
[358481909,1745200244915,-500.0,0.00065753,120]
[358481910,1745200244924,-500.0,0.00065753,120]
[358481911,1745200244933,-544.43388599,0.00065753,120]
[358481912,1745200244942,-500.0,0.00065753,120]
[358481913,1745200244952,-562.27002546,0.00065753,120]
[358481914,1745200244961,-500.0,0.00065753,120]
[358481915,1745200244970,-500.0,0.00065753,120]
[358481916,1745200244979,-553.38139315,0.00065753,120]
[358481917,1745200244988,-125.21160079,0.00065753,120]
[358481918,1745200245136,-374.78839921,0.00065753,120]
[358481919,1745200245146,-500.0,0.00065753,120]
[358481920,1745200245156,-500.0,0.00065753,120]
[358481921,1745200245165,-527.41162126,0.00065753,120]
[358481922,1745200245174,-533.24915566,0.00065753,120]
[358481923,1745200245184,-500.0,0.00065753,120]
[358481924,1745200245193,-422.12698223,0.00065753,120]
[358481925,1745200245306,-150.0,0.0006,120]
[358481926,1745200245315,-107.86249298,0.00065753,120]
[358481927,1745200245324,-535.7628128,0.00065753,120]
[358481928,1745200245334,-537.03268643,0.00065753,120]
[358481929,1745200245343,-500.0,0.00065753,120]
[358481930,1745200245352,-282.08522066,0.00065753,120]
[358481931,1745200245363,-217.91477934,0.00065753,120]
[358481932,1745200245372,-447.68177679,0.00065753,120]
[358481933,1745200245389,-83.15653752,0.00065753,120]
[358481934,1745200245399,-500.0,0.00065753,120]
[358481935,1745200245408,-500.0,0.00065753,120]
[358481936,1745200245418,-264.88884444,0.00065753,120]
[358481937,1745200245431,-235.11115556,0.00065753,120]
[358481938,1745200245440,-500.0,0.00065753,120]
[358481939,1745200245449,-205.63575324,0.00065753,120]
[358481940,1745200245461,-216.91424278,0.00065753,120]
[358481941,1745200245471,-120.45975722,0.00065753,120]
[358481942,1745200245483,-429.58282456,0.00065753,120]
[358481943,1745200245492,-500.0,0.00065753,120]
[358481944,1745200245500,-348.1495939,0.00065753,120]
[358481945,1745200245510,-500.0,0.00065753,120]
[358481946,1745200245519,-539.29506025,0.00065753,120]
[358481947,1745200245528,-125.22074525,0.00065753,120]
[358481950,1745200245728,-13758.0642,0.00054832,2]
[358481951,1745200245738,-367.30621031,0.00064498,120]
[358481954,1745200245748,-397.94353294,0.00065753,120]
[358481956,1745200245757,-500.0,0.00065753,120]
[358481958,1745200245766,-500.0,0.00065753,120]
[358481960,1745200245775,-500.0,0.00065753,120]
[358481962,1745200245784,-604.87939541,0.00065753,120]
[358481964,1745200245792,-1305.35,0.00065753,120]
[358481965,1745200245802,-500.0,0.00065753,120]
[358481966,1745200245811,-500.0,0.00065753,120]
[358481967,1745200245820,-500.0,0.00065753,120]
[358481968,1745200245829,-500.0,0.00065753,120]
[358481969,1745200245838,-500.0,0.00065753,120]
[358481970,1745200245847,-189.22240822,0.00065753,120]
[358481971,1745200245856,-500.0,0.00065753,120]
[358481972,1745200245866,-595.97838291,0.00065753,120]
[358481973,1745200245875,-216.38056911,0.00065753,120]
[358481974,1745200245887,-306.32702937,0.00065753,120]
[358481975,1745200245896,-500.0,0.00065753,120]
[358481976,1745200245906,-500.0,0.00065753,12]
[358481977,1745200245915,-500.0,0.00065753,120]
[358481978,1745200245924,-532.23537723,0.00065753,120]
[358481979,1745200245933,-511.59772099,0.00065753,120]
[358481980,1745200245942,-3039.5,0.00065753,7]
[358481981,1745200245953,-500.0,0.00065753,120]
[358481982,1745200245962,-500.0,0.00065753,120]
[358481983,1745200245971,-500.0,0.00065753,120]
[358481984,1745200245980,-500.0,0.00065753,120]
[358481985,1745200245989,-500.0,0.00065753,120]
[358481986,1745200245998,-250.0,0.00065753,120]
[358481987,1745200246007,-378.66089578,0.00065753,120]
[358481988,1745200246018,-500.0,0.00065753,120]
[358481989,1745200246027,-500.0,0.00065753,120]
[358481990,1745200246036,-500.0,0.00065753,120]
[358481991,1745200246045,-500.0,0.00065753,120]
[358481992,1745200246055,-500.0,0.00065753,120]
[358481993,1745200246064,-500.0,0.00065753,120]
[358481994,1745200246073,-500.0,0.00065753,120]
[358481995,1745200246082,-500.0,0.00065753,120]
[358481996,1745200246092,-523.03082466,0.00065753,120]
[358481997,1745200246102,-500.0,0.00065753,120]
[358481998,1745200246111,-540.49291994,0.00065753,120]
[358481999,1745200246120,-500.0,0.00065753,120]
[358482000,1745200246130,-500.0,0.00065753,120]
[358482001,1745200246139,-544.87554861,0.00065753,120]
[358482002,1745200246149,-500.0,0.00065753,120]
[358482003,1745200246159,-573.39775137,0.00065753,120]
[358482004,1745200246168,-628.08805513,0.00065753,120]
[358482005,1745200246177,-500.0,0.00065753,120]
[358482006,1745200246187,-500.0,0.00065753,120]
[358482007,1745200246196,-500.0,0.00065753,120]
[358482008,1745200246206,-523.95015706,0.00065753,120]
[358482009,1745200246216,-500.0,0.00065753,120]
[358482010,1745200246225,-500.0,0.00065753,120]
[358482011,1745200246235,-500.0,0.00065753,120]
[358482012,1745200246244,-500.0,0.00065753,120]
[358482013,1745200246253,-500.0,0.00065753,120]
[358482014,1745200246263,-292.49198075,0.00065753,120]
[358482015,1745200246272,-500.0,0.00065753,120]
[358482016,1745200246281,-500.0,0.00065753,120]
[358482017,1745200246291,-500.0,0.00065753,120]
[358482018,1745200246300,-500.0,0.00065753,120]
[358482019,1745200246309,-500.0,0.00065753,120]
[358482020,1745200246317,-500.0,0.00065753,120]
[358482022,1745200246326,-500.0,0.00065753,120]
[358482023,1745200246335,-523.37540358,0.00065753,120]
[358482025,1745200246344,-500.0,0.00065753,120]
[358482027,1745200246353,-500.0,0.00065753,30]
[358482028,1745200246362,-500.0,0.00065753,120]
[358482029,1745200246371,-500.0,0.00065753,120]